bitfinex-derivatives/quotes_BTCF0:USTF0_20251228
["timestamp","ask_amount","ask_price","bid_price","bid_amount"]
[1766943980439,0.00017073,87872.0,87861.0,0.0413894]
[1766943981844,0.00017073,87872.0,87863.0,0.0113892]
[1766943982044,0.00017073,87872.0,87863.0,0.0413892]
[1766943983542,0.00017073,87872.0,87864.0,0.011389]
[1766943985348,0.00017073,87872.0,87858.0,0.0968]
[1766943985544,7.3e-07,87872.0,87867.0,0.0113887]
[1766943987347,7.3e-07,87872.0,87869.0,0.0113884]
[1766943989653,7.3e-07,87872.0,87866.0,0.0113888]
[1766943991252,7.3e-07,87872.0,87868.0,0.0113886]
[1766943992854,7.3e-07,87872.0,87865.0,0.0113889]
[1766943994056,0.02504214,87871.0,87865.0,0.0113889]
[1766943994354,0.02504214,87870.0,87865.0,0.0113889]
[1766943994554,0.02504214,87869.0,87865.0,0.0113889]
[1766943994753,7.3e-07,87872.0,87865.0,0.0113889]
[1766943994754,4e-08,87868.0,87865.0,0.0113889]
[1766943994955,7.3e-07,87872.0,87865.0,0.0113889]
[1766944002551,7.3e-07,87872.0,87867.0,0.0113887]
[1766944004960,7.3e-07,87872.0,87864.0,0.0113891]
[1766944007061,7.3e-07,87872.0,87862.0,0.15376]
[1766944007260,7.3e-07,87872.0,87862.0,0.18376]
[1766944007472,7.3e-07,87872.0,87862.0,0.08696]
[1766944009962,7.3e-07,87872.0,87863.0,0.0113893]
[1766944010168,7.3e-07,87872.0,87863.0,0.0413893]
[1766944011173,0.02495488,87871.0,87863.0,0.0413893]
[1766944011469,7.3e-07,87872.0,87863.0,0.03]
[1766944011667,9e-08,87871.0,87863.0,0.03]
[1766944011970,7.3e-07,87872.0,87863.0,0.03]
[1766944013175,7.3e-07,87872.0,87866.0,0.0113888]
[1766944016566,7.3e-07,87872.0,87862.0,0.05696]
[1766944016763,7.3e-07,87872.0,87862.0,0.08696]
[1766944018373,7.3e-07,87872.0,87865.0,0.0113889]
[1766944018575,7.3e-07,87872.0,87865.0,0.0413889]
[1766944019177,7.3e-07,87872.0,87865.0,0.03]
[1766944022782,7.3e-07,87872.0,87864.0,0.0113891]
[1766944022981,7.3e-07,87872.0,87864.0,0.0413891]
[1766944023182,7.3e-07,87872.0,87865.0,0.05696]
[1766944023483,7.3e-07,87872.0,87865.0,0.08696]
[1766944023781,0.02471815,87871.0,87865.0,0.08696]
[1766944024080,0.02471815,87870.0,87865.0,0.08696]
[1766944024271,7.3e-07,87872.0,87865.0,0.08696]
[1766944024475,0.02471822,87871.0,87865.0,0.08696]
[1766944024680,0.02471822,87870.0,87865.0,0.08696]
[1766944024882,7.3e-07,87872.0,87865.0,0.08696]
[1766944025283,7.3e-07,87872.0,87866.0,0.0113888]
[1766944026183,7.3e-07,87872.0,87868.0,0.0113886]
[1766944036292,7.3e-07,87872.0,87865.0,0.05696]
[1766944036495,7.3e-07,87872.0,87865.0,0.08696]
[1766944036790,0.02461205,87871.0,87865.0,0.08696]
[1766944036988,0.02461205,87870.0,87865.0,0.08696]
[1766944037189,7.3e-07,87872.0,87865.0,0.08696]
[1766944037392,0.02461203,87871.0,87865.0,0.08696]
[1766944037591,0.02461203,87870.0,87865.0,0.08696]
[1766944037791,7.3e-07,87872.0,87865.0,0.08696]
[1766944037991,4e-08,87871.0,87865.0,0.098349]
[1766944038192,7.3e-07,87872.0,87865.0,0.098349]
[1766944042991,7.3e-07,87872.0,87867.0,0.0113887]
[1766944043196,7.3e-07,87872.0,87866.0,0.0113889]
[1766944043395,7.3e-07,87872.0,87866.0,0.0413889]
[1766944045307,7.3e-07,87872.0,87866.0,0.03]
[1766944049909,0.02425813,87871.0,87866.0,0.03]
[1766944050111,3e-08,87870.0,87866.0,0.03]
[1766944050314,7.3e-07,87872.0,87866.0,0.03]
[1766944052408,7.3e-07,87872.0,87867.0,0.0113887]
[1766944054113,7.3e-07,87872.0,87865.0,0.05696]
[1766944054305,7.3e-07,87872.0,87865.0,0.08696]
[1766944055212,7.3e-07,87872.0,87866.0,0.0113889]
[1766944057314,7.3e-07,87872.0,87866.0,0.03]
[1766944060410,7.3e-07,87872.0,87863.0,0.0113892]
[1766944060616,7.3e-07,87872.0,87864.0,0.05696]
[1766944061615,0.01138883,87872.0,87857.0,0.0968]
[1766944061812,0.01138883,87872.0,87854.0,0.05696]
[1766944061813,0.19972438,87867.0,87854.0,0.05696]
[1766944062113,0.09986219,87864.0,87854.0,0.05696]
[1766944062316,0.09986219,87864.0,87852.0,0.05696]
[1766944062515,0.09986219,87862.0,87847.0,0.0113913]
[1766944062821,0.09986219,87862.0,87849.0,0.01156173]
[1766944063012,0.09986219,87862.0,87849.0,0.04156173]
[1766944063212,0.09986219,87860.0,87849.0,0.04156173]
[1766944063411,0.06386219,87860.0,87851.0,0.0113908]
[1766944063612,0.09986219,87870.0,87851.0,0.0413908]
[1766944063813,0.02439853,87869.0,87851.0,0.0413908]
[1766944064117,0.02439853,87868.0,87851.0,0.0113908]
[1766944064316,0.02439853,87867.0,87851.0,0.0413908]
[1766944064517,0.09986219,87870.0,87851.0,0.0413908]
[1766944064518,0.02439853,87866.0,87851.0,0.0413908]
[1766944064819,0.02439853,87865.0,87851.0,0.0413908]
[1766944065020,0.09986219,87870.0,87851.0,0.0413908]
[1766944065215,0.02439453,87869.0,87851.0,0.0413908]
[1766944065414,0.02439453,87868.0,87851.0,0.0413908]
[1766944065624,0.02439453,87867.0,87851.0,0.0413908]
[1766944065822,0.02439453,87866.0,87851.0,0.0413908]
[1766944066018,0.09986219,87870.0,87851.0,0.0413908]
[1766944066224,0.0243914,87869.0,87851.0,0.0413908]
[1766944066424,0.0243914,87868.0,87851.0,0.0413908]
[1766944066625,0.0243914,87867.0,87851.0,0.0413908]
[1766944066825,0.0243914,87866.0,87851.0,0.0413908]
[1766944067026,0.09986219,87870.0,87851.0,0.0413908]
[1766944067226,0.02438666,87869.0,87851.0,0.0413908]
[1766944067525,0.02438666,87868.0,87851.0,0.0413908]
[1766944067722,0.09986219,87861.0,87851.0,0.0413908]
[1766944069525,7.3e-07,87872.0,87860.0,0.0113895]
[1766944069828,0.07014449,87872.0,87860.0,0.0413895]
[1766944070029,0.09986219,87870.0,87860.0,0.0413895]
[1766944073427,0.09986219,87870.0,87862.0,0.0113893]
[1766944073628,0.04914449,87872.0,87862.0,0.0413893]
[1766944076428,0.057,87877.0,87865.0,0.011389]
[1766944076635,0.057,87877.0,87865.0,0.041389]
[1766944077334,0.057,87877.0,87865.0,0.03]
[1766944081737,0.02448579,87876.0,87865.0,0.03]
[1766944081936,0.02448579,87875.0,87865.0,0.03]
[1766944082137,0.02448579,87874.0,87862.0,0.01156003]
[1766944082334,0.02448579,87873.0,87862.0,0.04156003]
[1766944082533,0.02448579,87872.0,87862.0,0.04156003]
[1766944082734,0.02448579,87871.0,87862.0,0.04156003]
[1766944082936,0.02448579,87870.0,87862.0,0.04156003]
[1766944083135,0.057,87877.0,87862.0,0.04156003]
[1766944083337,0.02448752,87876.0,87862.0,0.04156003]
[1766944083535,0.02448752,87875.0,87862.0,0.04156003]
[1766944083736,0.057,87877.0,87862.0,0.04156003]
[1766944083737,0.02448752,87874.0,87862.0,0.04156003]
[1766944083936,0.02448752,87873.0,87862.0,0.04156003]
[1766944084137,0.02448752,87872.0,87862.0,0.04156003]
[1766944084332,0.02448752,87871.0,87862.0,0.04156003]
[1766944084532,0.02448752,87870.0,87862.0,0.04156003]
[1766944084732,0.057,87877.0,87862.0,0.04156003]
[1766944084938,0.02448845,87876.0,87862.0,0.04156003]
[1766944085138,0.02448845,87875.0,87862.0,0.04156003]
[1766944085339,0.02448845,87874.0,87862.0,0.04156003]
[1766944085642,0.02448845,87873.0,87862.0,0.04156003]
[1766944085938,0.02448845,87872.0,87862.0,0.04156003]
[1766944086138,0.02448845,87871.0,87862.0,0.04156003]
[1766944086342,0.02448845,87870.0,87862.0,0.04156003]
[1766944086542,0.02448845,87869.0,87862.0,0.04156003]
[1766944086732,0.057,87877.0,87862.0,0.04156003]
[1766944086932,0.02449051,87876.0,87862.0,0.04156003]
[1766944087235,0.02449051,87875.0,87862.0,0.04156003]
[1766944087438,0.02449051,87874.0,87862.0,0.04156003]
[1766944087636,0.02449051,87873.0,87862.0,0.04156003]
[1766944087837,0.02449051,87872.0,87862.0,0.04156003]
[1766944088041,0.02449051,87871.0,87862.0,0.04156003]
[1766944088241,0.02449051,87870.0,87862.0,0.03017073]
[1766944088433,0.02449051,87869.0,87862.0,0.03017073]
[1766944088632,0.057,87877.0,87862.0,0.03017073]
[1766944088832,0.02449289,87876.0,87862.0,0.03017073]
[1766944089033,0.02449289,87875.0,87862.0,0.03017073]
[1766944089235,0.02449289,87874.0,87862.0,0.03017073]
[1766944089534,0.02449289,87873.0,87862.0,0.03017073]
[1766944089733,0.02449289,87872.0,87862.0,0.03017073]
[1766944089934,0.02449289,87871.0,87862.0,0.03017073]
[1766944090134,0.02449289,87870.0,87862.0,0.03017073]
[1766944090335,0.02449289,87869.0,87862.0,0.03017073]
[1766944090632,0.057,87877.0,87862.0,0.03017073]
[1766944090836,0.02449581,87876.0,87862.0,0.00017073]
[1766944091144,0.02449581,87875.0,87862.0,0.03017073]
[1766944091442,0.02449581,87874.0,87862.0,0.03017073]
[1766944091632,0.02449581,87873.0,87862.0,0.03017073]
[1766944091835,0.02449581,87872.0,87862.0,0.03017073]
[1766944092042,0.02449581,87871.0,87862.0,0.03017073]
[1766944092240,0.02449581,87870.0,87862.0,0.03017073]
[1766944092542,0.02449581,87869.0,87862.0,0.03017073]
[1766944092741,0.057,87877.0,87862.0,0.03017073]
[1766944092937,0.02449795,87876.0,87862.0,0.03017073]
[1766944093136,0.02449795,87875.0,87862.0,0.03017073]
[1766944093332,0.02449795,87874.0,87862.0,0.03017073]
[1766944093541,0.02449795,87873.0,87862.0,0.03017073]
[1766944093749,0.02449795,87872.0,87862.0,0.03017073]
[1766944094044,0.02449795,87871.0,87862.0,0.03017073]
[1766944094239,0.02449795,87870.0,87862.0,0.03017073]
[1766944094543,0.02449795,87869.0,87862.0,0.03017073]
[1766944094745,0.02449795,87868.0,87862.0,0.03017073]
[1766944094943,0.02449795,87867.0,87862.0,0.03017073]
[1766944095147,0.02449795,87866.0,87862.0,0.03017073]
[1766944095347,5e-08,87865.0,87862.0,0.03017073]
[1766944095539,0.057,87877.0,87862.0,0.03017073]
[1766944098050,0.057,87877.0,87863.0,0.0113893]
[1766944098250,0.057,87877.0,87863.0,0.0413893]
[1766944104350,0.057,87877.0,87865.0,0.0113889]
[1766944106455,0.057,87877.0,87863.0,0.0113892]
[1766944106657,0.057,87877.0,87863.0,0.0413892]
[1766944107345,0.02428215,87876.0,87863.0,0.0413892]
[1766944107546,0.02428215,87875.0,87863.0,0.0413892]
[1766944107847,0.02428215,87874.0,87863.0,0.0413892]
[1766944108045,0.02428215,87873.0,87863.0,0.0413892]
[1766944108245,0.02428215,87872.0,87863.0,0.0413892]
[1766944108454,0.02428215,87871.0,87863.0,0.0413892]
[1766944108653,0.02428215,87870.0,87863.0,0.0413892]
[1766944108856,0.02428215,87869.0,87863.0,0.0413892]
[1766944109054,0.02428215,87868.0,87863.0,0.0413892]
[1766944109255,0.02428215,87867.0,87863.0,0.0413892]
[1766944109455,0.057,87877.0,87863.0,0.0413892]
[1766944109654,0.02428221,87876.0,87863.0,0.0413892]
[1766944109854,0.02428221,87875.0,87863.0,0.0413892]
[1766944110152,0.02428221,87874.0,87863.0,0.0413892]
[1766944110353,0.02428221,87873.0,87863.0,0.0413892]
[1766944110555,0.02428221,87872.0,87863.0,0.0413892]
[1766944110751,0.02428221,87871.0,87863.0,0.0413892]
[1766944110952,0.02428221,87870.0,87863.0,0.0413892]
[1766944111145,0.02428221,87869.0,87863.0,0.0413892]
[1766944111347,0.02428221,87868.0,87863.0,0.03]
[1766944111546,1e-08,87867.0,87863.0,0.03]
[1766944111743,0.057,87877.0,87863.0,0.03]
[1766944123655,0.02417696,87876.0,87863.0,0.03]
[1766944123856,0.02417696,87875.0,87863.0,0.03]
[1766944124055,0.02417696,87874.0,87863.0,0.03]
[1766944124257,0.02417696,87873.0,87863.0,0.03]
[1766944124555,0.02417696,87872.0,87863.0,0.03]
[1766944124759,0.02417696,87871.0,87863.0,0.03]
[1766944124957,0.02417696,87870.0,87863.0,0.03]
[1766944125158,0.02417696,87869.0,87863.0,0.03]
[1766944125359,0.02417696,87868.0,87863.0,0.03]
[1766944125561,0.057,87877.0,87863.0,0.03]
[1766944125562,0.02417696,87867.0,87863.0,0.03]
[1766944125752,0.057,87877.0,87863.0,0.03]
[1766944125954,0.024177,87876.0,87863.0,0.03]
[1766944126151,0.024177,87875.0,87863.0,0.03]
[1766944126355,0.024177,87874.0,87863.0,0.03]
[1766944126556,0.024177,87873.0,87863.0,0.03]
[1766944126756,0.024177,87872.0,87863.0,0.03]
[1766944126952,0.024177,87871.0,87863.0,0.03]
[1766944127160,0.024177,87870.0,87863.0,0.03]
[1766944127361,0.024177,87869.0,87863.0,0.03]
[1766944127561,0.024177,87868.0,87863.0,0.03]
[1766944127861,0.024177,87867.0,87863.0,0.03]
[1766944128160,0.057,87877.0,87863.0,0.03]
[1766944128364,0.02417698,87876.0,87863.0,0.03]
[1766944128562,0.02417698,87875.0,87863.0,0.03]
[1766944128767,0.02417698,87874.0,87863.0,0.03]
[1766944128968,0.02417698,87873.0,87863.0,0.03]
[1766944129167,0.02417698,87872.0,87863.0,0.03]
[1766944129467,0.02417698,87871.0,87863.0,0.03]
[1766944129663,0.02417698,87870.0,87863.0,0.03]
[1766944129861,0.02417698,87869.0,87863.0,0.03]
[1766944130061,0.02417698,87868.0,87863.0,0.03]
[1766944130269,0.02417698,87867.0,87863.0,0.03]
[1766944130469,0.057,87877.0,87863.0,0.03]
[1766944130669,0.02417697,87876.0,87863.0,0.03]
[1766944130871,0.02417697,87875.0,87863.0,0.03]
[1766944131059,0.02417697,87874.0,87863.0,0.03]
[1766944131262,0.02417697,87873.0,87863.0,0.03]
[1766944131472,0.02417697,87872.0,87863.0,0.03]
[1766944131673,0.02417697,87871.0,87863.0,0.03]
[1766944131870,0.02417697,87870.0,87863.0,0.03]
[1766944132068,0.02417697,87869.0,87863.0,0.03]
[1766944132368,0.02417697,87868.0,87863.0,0.03]
[1766944132568,0.02417697,87867.0,87863.0,0.03]
[1766944132760,0.057,87877.0,87863.0,0.03]
[1766944132963,0.02417693,87876.0,87863.0,0.03]
[1766944133161,0.02417693,87875.0,87863.0,0.03]
[1766944133365,0.02417693,87874.0,87863.0,0.03]
[1766944133573,0.02417693,87873.0,87863.0,0.03]
[1766944133774,0.02417693,87872.0,87863.0,0.03]
[1766944133976,0.02417693,87871.0,87863.0,0.03]
[1766944134166,0.02417693,87870.0,87863.0,0.03]
[1766944134366,0.06150328,87876.0,87863.0,0.03]
[1766944135676,0.06150328,87876.0,87863.0,0.0413892]
[1766944141977,0.11846328,87876.0,87863.0,0.0413892]
[1766944142180,0.11846328,87876.0,87863.0,0.0113892]
[1766944142376,0.11846328,87876.0,87863.0,0.0413892]
[1766944142881,0.11846328,87876.0,87863.0,0.0113892]
[1766944143181,0.11846328,87876.0,87863.0,0.0413892]
[1766944144083,0.05696,87876.0,87863.0,0.0413892]
[1766944145484,0.10003453,87880.0,87863.0,0.0413892]
[1766944145678,0.05696,87877.0,87863.0,0.0413892]
[1766944146486,0.02402422,87876.0,87863.0,0.0413892]
[1766944146688,0.02402422,87875.0,87863.0,0.0413892]
[1766944146883,0.02402422,87874.0,87863.0,0.0413892]
[1766944147083,0.02402422,87873.0,87863.0,0.0413892]
[1766944147284,0.02402422,87872.0,87863.0,0.0413892]
[1766944147482,0.02402422,87871.0,87863.0,0.0413892]
[1766944147682,0.02402422,87870.0,87863.0,0.0413892]
[1766944147882,0.02402422,87869.0,87863.0,0.0413892]
[1766944148083,0.02402422,87868.0,87863.0,0.0413892]
[1766944148283,0.05696,87877.0,87863.0,0.0413892]
[1766944148484,0.02402423,87876.0,87863.0,0.0413892]
[1766944148685,0.02402423,87875.0,87863.0,0.0413892]
[1766944148886,0.02402423,87874.0,87863.0,0.0413892]
[1766944149181,0.02402423,87873.0,87863.0,0.0413892]
[1766944149386,0.02402423,87872.0,87863.0,0.0413892]
[1766944149690,0.02402423,87871.0,87863.0,0.0413892]
[1766944149889,0.02402423,87870.0,87863.0,0.0413892]
[1766944150090,0.02402423,87869.0,87863.0,0.0413892]
[1766944150293,0.02402423,87868.0,87863.0,0.0413892]
[1766944150493,0.05696,87877.0,87863.0,0.0413892]
[1766944150694,0.02402416,87876.0,87863.0,0.0413892]
[1766944150892,0.02402416,87875.0,87863.0,0.0413892]
[1766944151092,0.02402416,87874.0,87863.0,0.0413892]
[1766944151292,0.02402416,87873.0,87863.0,0.0413892]
[1766944151492,0.02402416,87872.0,87863.0,0.0413892]
[1766944151697,0.02402416,87871.0,87863.0,0.0413892]
[1766944151891,0.02402416,87870.0,87863.0,0.0413892]
[1766944152190,0.02402416,87869.0,87863.0,0.0413892]
[1766944152390,0.05696,87877.0,87863.0,0.0413892]
[1766944152391,0.02402416,87868.0,87863.0,0.0413892]
[1766944152596,0.05696,87877.0,87863.0,0.0413892]
[1766944152791,0.02402413,87876.0,87863.0,0.0413892]
[1766944153089,0.02402413,87875.0,87863.0,0.0413892]
[1766944153291,0.02402413,87874.0,87863.0,0.0413892]
[1766944153496,0.02402413,87873.0,87863.0,0.0413892]
[1766944153690,0.02402413,87872.0,87863.0,0.0113892]
[1766944153903,0.02402413,87871.0,87863.0,0.0413892]
[1766944154098,0.02402413,87870.0,87863.0,0.0413892]
[1766944154299,0.02402413,87869.0,87863.0,0.0413892]
[1766944154499,0.02402413,87868.0,87863.0,0.0413892]
[1766944154802,0.02402413,87867.0,87863.0,0.0413892]
[1766944155102,0.05696,87877.0,87863.0,0.0413892]
[1766944155304,0.0240229,87876.0,87863.0,0.0413892]
[1766944155503,0.0240229,87875.0,87863.0,0.0413892]
[1766944155704,0.0240229,87874.0,87863.0,0.0413892]
[1766944155905,0.0240229,87873.0,87863.0,0.0413892]
[1766944156209,0.05696,87877.0,87863.0,0.0413892]
[1766944156210,0.0240229,87872.0,87863.0,0.03]
[1766944156506,0.0240229,87871.0,87863.0,0.03]
[1766944156708,0.0240229,87870.0,87863.0,0.03]
[1766944156911,0.0240229,87869.0,87863.0,0.03]
[1766944157207,0.0240229,87868.0,87863.0,0.03]
[1766944157409,0.0240229,87867.0,87863.0,0.03]
[1766944157596,0.05696,87877.0,87863.0,0.03]
[1766944157799,0.02402224,87876.0,87863.0,0.03]
[1766944158011,0.02402224,87875.0,87863.0,0.03]
[1766944158211,0.02402224,87874.0,87863.0,0.03]
[1766944158413,0.02402224,87873.0,87863.0,0.03]
[1766944158611,0.02402224,87872.0,87863.0,0.03]
[1766944158908,0.02402224,87871.0,87863.0,0.03]
[1766944159208,0.02402224,87870.0,87863.0,0.03]
[1766944159403,0.02402224,87869.0,87864.0,0.0113891]
[1766944159709,0.02402224,87868.0,87864.0,0.03]
[1766944159910,0.02402224,87867.0,87864.0,0.03]
[1766944160108,0.05696,87877.0,87864.0,0.03]
[1766944160411,0.02402191,87876.0,87864.0,0.03]
[1766944160610,0.02402191,87875.0,87864.0,0.03]
[1766944160813,0.02402191,87874.0,87864.0,0.03]
[1766944161002,0.02402191,87873.0,87864.0,0.03]
[1766944161203,0.05696,87877.0,87864.0,0.03]
[1766944161204,0.02402191,87872.0,87864.0,0.03]
[1766944161409,0.02402191,87871.0,87864.0,0.03]
[1766944161708,0.02402191,87870.0,87864.0,0.03]
[1766944161910,0.02402191,87869.0,87864.0,0.03]
[1766944162112,0.02402191,87868.0,87864.0,0.03]
[1766944162412,0.02402191,87867.0,87864.0,0.03]
[1766944162612,0.05696,87877.0,87864.0,0.03]
[1766944162809,0.02402206,87876.0,87864.0,0.03]
[1766944163008,0.02402206,87875.0,87864.0,0.03]
[1766944163209,0.02402206,87874.0,87864.0,0.03]
[1766944163413,0.02402206,87873.0,87864.0,0.03]
[1766944163614,0.02402206,87872.0,87864.0,0.03]
[1766944163812,0.02402206,87871.0,87864.0,0.03]
[1766944164115,0.02402206,87870.0,87864.0,0.03]
[1766944164416,0.02402206,87869.0,87864.0,0.03]
[1766944164713,0.02402206,87868.0,87864.0,0.03]
[1766944164904,0.02402206,87867.0,87864.0,0.03]
[1766944165102,0.05696,87877.0,87864.0,0.03]
[1766944165316,0.02402208,87876.0,87864.0,0.03]
[1766944165516,0.02402208,87875.0,87864.0,0.03]
[1766944165814,0.02402208,87874.0,87864.0,0.03]
[1766944166015,0.02402208,87873.0,87864.0,0.03]
[1766944166216,0.02402208,87872.0,87864.0,0.03]
[1766944166516,0.02402208,87871.0,87864.0,0.03]
[1766944166717,0.02402208,87870.0,87864.0,0.03]
[1766944166918,0.02402208,87869.0,87864.0,0.03]
[1766944167118,0.02402208,87868.0,87864.0,0.03]
[1766944167320,0.05696,87877.0,87864.0,0.03]
[1766944167508,0.02401081,87876.0,87864.0,0.03]
[1766944167813,0.05696,87877.0,87864.0,0.03]
[1766944167814,0.02401081,87875.0,87864.0,0.03]
[1766944168014,0.02401081,87874.0,87864.0,0.03]
[1766944168215,0.02401081,87873.0,87864.0,0.03]
[1766944168416,0.02401081,87872.0,87864.0,0.03]
[1766944168722,0.02401081,87871.0,87864.0,0.03]
[1766944168917,0.02401081,87870.0,87864.0,0.03]
[1766944169117,0.02401082,87869.0,87864.0,0.03]
[1766944169319,0.02401082,87868.0,87864.0,0.03]
[1766944169521,0.05696,87877.0,87864.0,0.03]
[1766944169719,0.02401078,87876.0,87864.0,0.03]
[1766944169920,0.02401078,87875.0,87864.0,0.03]
[1766944170123,0.02401078,87874.0,87864.0,0.03]
[1766944170420,0.02401078,87873.0,87864.0,0.03]
[1766944170620,0.02401078,87872.0,87864.0,0.03]
[1766944170920,0.02401078,87871.0,87864.0,0.03]
[1766944171222,0.02401078,87870.0,87864.0,0.03]
[1766944171522,0.02401078,87869.0,87864.0,0.03]
[1766944171722,0.02401078,87868.0,87864.0,0.03]
[1766944172022,0.05696,87877.0,87864.0,0.03]
[1766944172223,0.02401083,87876.0,87864.0,0.03]
[1766944172423,0.02401083,87875.0,87864.0,0.03]
[1766944172612,0.02401083,87874.0,87864.0,0.03]
[1766944172814,0.02401083,87873.0,87864.0,0.03]
[1766944173114,0.02401083,87872.0,87864.0,0.03]
[1766944173310,0.02401083,87871.0,87864.0,0.03]
[1766944173514,0.02401083,87870.0,87864.0,0.03]
[1766944173712,0.02401083,87869.0,87864.0,0.03]
[1766944173926,0.02401083,87868.0,87864.0,0.03]
[1766944174125,0.02401083,87867.0,87864.0,0.03]
[1766944174326,0.05696,87877.0,87864.0,0.03]
[1766944174526,0.02401079,87876.0,87864.0,0.03]
[1766944174829,0.02401079,87875.0,87864.0,0.03]
[1766944175022,0.02401079,87874.0,87864.0,0.03]
[1766944175221,0.02401079,87873.0,87864.0,0.03]
[1766944175422,0.02401079,87872.0,87864.0,0.03]
[1766944175721,0.02401079,87871.0,87864.0,0.03]
[1766944175924,0.02401079,87870.0,87864.0,0.03]
[1766944176123,0.02401079,87869.0,87864.0,0.03]
[1766944176420,0.02401079,87868.0,87864.0,0.03]
[1766944176623,0.05696,87877.0,87864.0,0.03]
[1766944176823,0.02401078,87876.0,87864.0,0.03]
[1766944177123,0.02401078,87875.0,87864.0,0.03]
[1766944177315,0.02401078,87874.0,87864.0,0.03]
[1766944177519,0.02401078,87873.0,87864.0,0.03]
[1766944177719,0.02401078,87872.0,87864.0,0.03]
[1766944177923,0.02401078,87871.0,87864.0,0.03]
[1766944178121,0.02401078,87870.0,87864.0,0.03]
[1766944178320,0.02401078,87869.0,87864.0,0.03]
[1766944178522,0.02401078,87868.0,87864.0,0.03]
[1766944178722,0.02401078,87867.0,87864.0,0.03]
[1766944178923,0.05696,87877.0,87864.0,0.03]
[1766944179120,0.02401076,87876.0,87864.0,0.03]
[1766944179332,0.02401076,87875.0,87864.0,0.03]
[1766944179533,0.02401076,87874.0,87864.0,0.03]
[1766944179734,0.02401076,87873.0,87864.0,0.03]
[1766944179935,0.02401076,87872.0,87864.0,0.03]
[1766944180134,0.02401076,87871.0,87864.0,0.03]
[1766944180433,0.02401076,87870.0,87864.0,0.03]
[1766944180633,0.02401076,87869.0,87864.0,0.03]
[1766944180835,0.02401076,87868.0,87864.0,0.03]
[1766944181136,0.05696,87877.0,87864.0,0.03]
[1766944197943,0.0113876,87876.0,87859.0,0.05696]
[1766944198139,0.0113876,87876.0,87859.0,0.08696]
[1766944198842,0.0113876,87876.0,87859.0,0.08713073]
[1766944199340,0.0998638,87870.0,87859.0,0.00017073]
[1766944199545,0.0998638,87870.0,87854.0,0.05696]
[1766944200244,0.02397496,87869.0,87854.0,0.05696]
[1766944200448,0.08093496,87868.0,87853.0,0.00017073]
[1766944200749,0.02397496,87867.0,87853.0,0.00017073]
[1766944200948,0.05696,87868.0,87853.0,0.00017073]
[1766944201148,0.02397494,87867.0,87853.0,0.00017073]
[1766944201333,0.05696,87868.0,87853.0,0.00017073]
[1766944201537,0.02397262,87867.0,87853.0,0.00017073]
[1766944201737,0.05696,87868.0,87853.0,0.00017073]
[1766944201943,0.02397373,87867.0,87853.0,0.00017073]
[1766944202141,0.05696,87868.0,87853.0,0.00017073]
[1766944202342,0.02397728,87867.0,87853.0,0.00017073]
[1766944202542,0.05696,87868.0,87853.0,0.00017073]
[1766944202734,0.02397791,87867.0,87846.0,0.0113914]
[1766944202938,0.05696,87868.0,87848.0,0.0113912]
[1766944203141,0.0113892,87864.0,87842.0,0.0113919]
[1766944203346,0.0113895,87862.0,87843.0,0.15376]
[1766944203549,0.08093795,87861.0,87843.0,0.15376]
[1766944203754,0.02397795,87860.0,87843.0,0.15376]
[1766944203950,0.02397795,87859.0,87843.0,0.15376]
[1766944204151,0.05713073,87861.0,87844.0,0.0113917]
[1766944204356,0.02395834,87860.0,87844.0,0.0113917]
[1766944204651,0.02395834,87859.0,87844.0,0.0113917]
[1766944204836,0.05713073,87861.0,87844.0,0.0113917]
[1766944205039,0.02395834,87860.0,87844.0,0.0113917]
[1766944205245,0.05713073,87861.0,87844.0,0.0113917]
[1766944205554,0.02395256,87860.0,87843.0,0.15376]
[1766944205754,0.05713073,87861.0,87843.0,0.18376]
[1766944205958,0.02395252,87860.0,87843.0,0.18376]
[1766944206144,0.05713073,87861.0,87843.0,0.18376]
[1766944206453,0.02394799,87860.0,87843.0,0.18376]
[1766944206646,0.05713073,87861.0,87843.0,0.18376]
[1766944206954,0.023948,87860.0,87843.0,0.18376]
[1766944207158,0.05713073,87861.0,87843.0,0.18376]
[1766944207954,0.05713073,87861.0,87843.0,0.15376]
[1766944209353,0.05713073,87861.0,87843.0,0.1651518]
[1766944212453,0.05713073,87861.0,87844.0,0.05696]
[1766944213052,0.02393396,87860.0,87844.0,0.05696]
[1766944213254,0.05713073,87861.0,87844.0,0.05696]
[1766944213442,0.02393297,87860.0,87844.0,0.05696]
[1766944213642,0.02393297,87859.0,87844.0,0.05696]
[1766944213846,0.05713073,87861.0,87844.0,0.05696]
[1766944214052,0.02393297,87860.0,87844.0,0.05696]
[1766944214350,0.02393297,87859.0,87844.0,0.05696]
[1766944214551,0.05713073,87861.0,87844.0,0.05696]
[1766944214752,0.02393227,87860.0,87844.0,0.05696]
[1766944214954,0.02393227,87859.0,87844.0,0.05696]
[1766944215151,0.05713073,87861.0,87844.0,0.05696]
[1766944215351,0.02393187,87860.0,87844.0,0.05696]
[1766944215544,0.02393187,87859.0,87844.0,0.05696]
[1766944215744,0.05713073,87861.0,87844.0,0.05696]
[1766944215945,0.02393187,87860.0,87844.0,0.05696]
[1766944216150,0.02393187,87859.0,87844.0,0.05696]
[1766944216450,0.05713073,87861.0,87844.0,0.05696]
[1766944216650,0.02393173,87860.0,87844.0,0.05696]
[1766944216953,0.02393173,87859.0,87844.0,0.05696]
[1766944217154,0.05713073,87861.0,87844.0,0.05696]
[1766944217453,0.02393186,87860.0,87844.0,0.0683517]
[1766944217762,0.02393186,87859.0,87844.0,0.0683517]
[1766944217951,0.05713073,87861.0,87847.0,0.0113913]
[1766944218151,0.02393186,87860.0,87847.0,0.0113913]
[1766944218359,0.02393186,87859.0,87847.0,0.0113913]
[1766944218558,0.05713073,87861.0,87847.0,0.0113913]
[1766944218761,0.02393225,87860.0,87847.0,0.0113913]
[1766944218959,0.02393225,87859.0,87847.0,0.0113913]
[1766944219159,0.05713073,87861.0,87847.0,0.0113913]
[1766944219361,0.02393292,87860.0,87847.0,0.0113913]
[1766944219663,0.02393292,87859.0,87847.0,0.0113913]
[1766944219863,0.05713073,87861.0,87847.0,0.0113913]
[1766944220059,0.02393292,87860.0,87847.0,0.0113913]
[1766944220260,0.02393292,87859.0,87847.0,0.0113913]
[1766944220459,0.05713073,87861.0,87844.0,0.0683517]